bitfinex/quotes_SOLUSD_20241102
["timestamp","ask_amount","ask_price","bid_price","bid_amount"]
[1730527381283,14.72813403,167.03,166.98,5.9885]
[1730527381483,14.72813403,167.03,166.99,1.49848443]
[1730527381690,14.72813403,167.03,166.98,5.9885]
[1730527381911,14.72813403,167.03,166.99,1.49848418]
[1730527382204,14.72813403,167.03,167.0,1.49848418]
[1730527382508,14.72813403,167.03,167.01,1.49848392]
[1730527384087,5.9869,167.03,167.01,1.49848392]
[1730527385092,5.9869,167.03,167.02,1.49844693]
[1730527385298,5.9869,167.03,167.01,1.49848392]
[1730527386308,5.9869,167.03,167.02,1.49844537]
[1730527386619,28.2693,167.04,167.02,1.49844537]
[1730527386917,28.2693,167.04,167.01,1.49848392]
[1730527387100,28.2693,167.04,167.02,1.49841549]
[1730527387292,28.2693,167.04,166.99,8.74123403]
[1730527387497,28.2693,167.04,167.0,1.49844562]
[1730527387696,28.2693,167.04,166.99,8.74123403]
[1730527387697,28.2693,167.04,167.01,1.49844562]
[1730527387900,37.01053403,167.04,166.99,8.74123403]
[1730527388100,37.01053403,167.04,167.0,1.49847524]
[1730527388311,37.01053403,167.04,167.01,1.49847524]
[1730527388495,37.01053403,167.04,166.99,8.74123403]
[1730527388706,37.01053403,167.04,167.0,1.49849695]
[1730527389013,37.01053403,167.04,167.01,1.49849695]
[1730527389313,37.01053403,167.04,166.98,29.70083403]
[1730527389517,37.01053403,167.04,166.99,1.49847549]
[1730527389716,37.01053403,167.04,167.0,1.49847549]
[1730527390017,37.01053403,167.04,167.01,1.49847549]
[1730527390216,37.01053403,167.04,166.98,29.70083403]
[1730527390420,8.74123403,167.03,166.99,1.4984763]
[1730527390595,14.72843403,167.03,167.0,1.4984763]
[1730527390795,14.72843403,167.03,167.01,1.4984763]
[1730527391001,14.72843403,167.03,166.98,20.9596]
[1730527391316,14.72843403,167.03,166.99,1.49847499]
[1730527391517,14.72843403,167.03,167.0,1.49847499]
[1730527391723,14.72843403,167.03,167.01,1.49847499]
[1730527391906,5.9872,167.03,167.02,1.49840834]
[1730527392312,5.9872,167.03,166.98,29.70083403]
[1730527392626,5.9872,167.03,166.99,1.4984165]
[1730527392826,5.9872,167.03,167.0,1.49841625]
[1730527392997,5.9872,167.03,167.01,1.49841625]
[1730527393194,5.9872,167.03,167.02,1.49841625]
[1730527393413,5.9872,167.03,166.99,8.74123403]
[1730527393605,5.9872,167.03,167.0,1.49847485]
[1730527393814,5.9872,167.03,167.01,1.49847485]
[1730527393991,5.9872,167.03,166.99,8.74123403]
[1730527394194,5.9872,167.03,167.0,1.49844598]
[1730527394416,5.9872,167.03,167.01,1.49844598]
[1730527394618,5.9872,167.03,167.02,1.49844598]
[1730527395003,5.9872,167.03,166.99,8.74123403]
[1730527395313,5.9872,167.03,167.0,1.49847485]
[1730527395499,5.9872,167.03,167.01,1.49847485]
[1730527395699,5.9872,167.03,166.99,8.74123403]
[1730527395899,5.9872,167.03,167.0,1.4984751]
[1730527396110,5.9872,167.03,167.01,1.4984751]
[1730527396310,5.9872,167.03,166.99,8.74123403]
[1730527396521,5.9872,167.03,167.0,1.4984751]
[1730527396710,5.9872,167.03,166.99,8.74123403]
[1730527398920,5.9872,167.03,166.98,8.74123403]
[1730527403612,5.9872,167.03,166.97,8.74123403]
[1730527404807,5.9872,167.03,166.97,14.73013403]
[1730527405208,5.9872,167.03,166.98,8.74123403]
[1730527409034,5.9872,167.03,166.99,1.49848453]
[1730527409227,5.9872,167.03,167.0,1.49848453]
[1730527409529,5.9872,167.03,167.01,1.49848453]
[1730527409828,5.9872,167.03,166.98,8.74123403]
[1730527410125,5.9872,167.03,166.99,1.49848453]
[1730527410330,5.9872,167.03,167.0,1.49848453]
[1730527410628,5.9872,167.03,167.01,1.49848453]
[1730527410928,5.9872,167.03,166.98,8.74123403]
[1730527411116,5.9872,167.03,166.99,1.49848229]
[1730527411429,5.9872,167.03,167.0,1.49848229]
[1730527411726,5.9872,167.03,167.01,1.49848229]
[1730527412026,5.9872,167.03,166.98,8.74123403]
[1730527412226,5.9872,167.03,166.99,1.49848377]
[1730527412428,5.9872,167.03,167.0,1.49848377]
[1730527412617,5.9872,167.03,167.01,1.49848377]
[1730527412815,5.9872,167.03,166.98,8.74123403]
[1730527413017,5.9872,167.03,166.99,1.49846231]
[1730527413322,5.9872,167.03,167.0,1.49846231]
[1730527413539,5.9872,167.03,167.01,1.49846231]
[1730527413709,5.9872,167.03,166.98,8.74123403]
[1730527413909,5.9872,167.03,166.99,1.49848453]
[1730527414105,5.9872,167.03,167.0,1.49848453]
[1730527414309,5.9872,167.03,167.01,1.49848453]
[1730527414513,5.9872,167.03,166.98,8.74123403]
[1730527414932,5.9872,167.03,166.99,1.49848453]
[1730527415235,5.9872,167.03,167.0,1.49848453]
[1730527415435,5.9872,167.03,167.01,1.49848453]
[1730527415620,5.9872,167.03,166.98,14.72983403]
[1730527415820,5.9872,167.03,166.99,1.49847476]
[1730527416020,5.9872,167.03,167.0,1.49847476]
[1730527416222,5.9872,167.03,167.01,1.49847476]
[1730527416535,5.9872,167.03,166.98,14.72983403]
[1730527416728,5.9872,167.03,166.99,1.49848453]
[1730527416936,5.9872,167.03,167.0,1.49848453]
[1730527417126,5.9872,167.03,167.01,1.49848453]
[1730527417325,5.9872,167.03,166.98,14.72983403]
[1730527417519,5.9872,167.03,166.99,1.49848453]
[1730527417721,5.9872,167.03,167.0,1.49848453]
[1730527417920,5.9872,167.03,167.01,1.49848453]
[1730527418121,5.9872,167.03,166.98,5.9886]
[1730527418532,5.9872,167.03,166.99,1.49848453]
[1730527418840,5.9872,167.03,167.0,1.49848453]
[1730527419051,5.9872,167.03,167.01,1.49848453]
[1730527419342,5.9872,167.03,166.98,5.9886]
[1730527419535,5.9872,167.03,166.99,1.49848453]
[1730527419721,5.9872,167.03,167.0,1.49848453]
[1730527419922,5.9872,167.03,167.01,1.49848453]
[1730527420144,5.9872,167.03,166.98,5.9886]
[1730527420421,5.9872,167.03,166.99,1.49848377]
[1730527420736,5.9872,167.03,167.0,1.49848377]
[1730527420940,5.9872,167.03,167.01,1.49848377]
[1730527421246,5.9872,167.03,166.98,5.9886]
[1730527421543,5.9872,167.03,166.99,1.49848609]
[1730527421741,5.9872,167.03,167.0,1.49848609]
[1730527421934,5.9872,167.03,167.01,1.49848609]
[1730527422135,5.9872,167.03,166.98,5.9886]
[1730527422443,5.9872,167.03,166.99,1.49848453]
[1730527422643,5.9872,167.03,167.0,1.49848453]
[1730527422836,5.9872,167.03,167.01,1.49848453]
[1730527423021,5.9872,167.03,166.98,5.9886]
[1730527423220,5.9872,167.03,166.99,1.49848376]
[1730527423443,5.9872,167.03,167.0,1.49848376]
[1730527423629,5.9872,167.03,167.01,1.49848376]
[1730527423823,5.9872,167.03,166.98,5.9886]
[1730527424127,5.9872,167.03,166.99,1.49848392]
[1730527424322,5.9872,167.03,167.0,1.49848392]
[1730527424531,5.9872,167.03,167.01,1.49848392]
[1730527424724,5.9872,167.03,166.98,5.9886]
[1730527424926,5.9872,167.03,166.99,1.49846403]
[1730527425224,5.9872,167.03,167.0,1.49846403]
[1730527425424,5.9872,167.03,167.01,1.49846403]
[1730527425733,5.9872,167.03,166.98,5.9886]
[1730527425927,5.9872,167.03,166.99,1.49848468]
[1730527426238,5.9872,167.03,167.0,1.49848468]
[1730527426417,5.9872,167.03,167.01,1.49848468]
[1730527426618,5.9872,167.03,166.98,5.9886]
[1730527426818,5.9872,167.03,166.99,1.49848468]
[1730527427020,5.9872,167.03,167.0,1.49848468]
[1730527427218,5.9872,167.03,167.01,1.49848468]
[1730527427438,5.9872,167.03,166.98,5.9886]
[1730527427659,5.9872,167.03,166.99,1.49848468]
[1730527427819,5.9872,167.03,167.0,1.49848468]
[1730527428023,5.9872,167.03,167.01,1.49848468]
[1730527428232,5.9872,167.03,166.98,5.9886]
[1730527428435,5.9872,167.03,166.99,1.49848468]
[1730527428643,5.9872,167.03,167.0,1.49848468]
[1730527428840,5.9872,167.03,167.01,1.49848468]
[1730527429043,5.9872,167.03,166.98,5.9886]
[1730527429245,5.9872,167.03,166.99,1.49848468]
[1730527429544,5.9872,167.03,167.0,1.49848443]
[1730527429841,14.72843403,167.03,167.01,1.49848443]
[1730527430026,14.72843403,167.03,166.98,5.9886]
[1730527430231,14.72843403,167.03,166.99,1.49848392]
[1730527430531,14.72843403,167.03,167.0,1.49848392]
[1730527430732,14.72843403,167.03,167.01,1.49848392]
[1730527430932,14.72843403,167.03,166.98,5.9886]
[1730527431129,14.72843403,167.03,166.99,1.498476]
[1730527431333,14.72843403,167.03,167.0,1.498476]
[1730527431523,31.02393403,167.04,167.01,1.498476]
[1730527431731,37.01053403,167.04,167.02,1.49847498]
[1730527431938,37.01053403,167.04,166.99,8.74123403]
[1730527432129,37.01053403,167.04,167.0,1.49844511]
[1730527432331,37.01053403,167.04,167.01,1.49844511]
[1730527432526,37.01053403,167.04,166.98,14.72983403]
[1730527432738,37.01053403,167.04,166.99,1.49846017]
[1730527432940,37.01053403,167.04,167.0,1.49846017]
[1730527433224,37.01053403,167.04,167.01,1.49847548]
[1730527433418,37.01053403,167.04,167.02,1.49844536]
[1730527433643,37.01053403,167.04,166.98,14.72983403]
[1730527433823,37.01053403,167.04,166.99,1.49844612]
[1730527434125,37.01053403,167.04,167.0,1.49844612]
[1730527434437,37.01053403,167.04,167.01,1.49844612]
[1730527434641,37.01053403,167.04,167.02,1.49844612]
[1730527434845,37.01053403,167.04,166.98,14.72983403]
[1730527435043,37.01053403,167.04,166.99,1.49844511]
[1730527435237,37.01053403,167.04,167.0,1.49844511]
[1730527435427,37.01053403,167.04,167.01,1.49844511]
[1730527435627,37.01053403,167.04,166.98,14.72983403]
[1730527435827,37.01053403,167.04,166.99,1.49847574]
[1730527436030,37.01053403,167.04,167.0,1.49847574]
[1730527436357,37.01053403,167.04,167.01,1.49847574]
[1730527436638,37.01053403,167.04,166.98,14.72983403]
[1730527436839,37.01053403,167.04,167.02,1.49845276]
[1730527437037,37.01053403,167.04,166.98,14.72983403]
[1730527437239,37.01053403,167.04,166.99,1.49841921]
[1730527437442,37.01053403,167.04,167.0,1.49841921]
[1730527437664,37.01053403,167.04,167.01,1.49841921]
[1730527437825,37.01053403,167.04,167.02,1.49841921]
[1730527438029,37.01053403,167.04,166.98,14.72983403]
[1730527438227,37.01053403,167.04,166.99,1.4984188]
[1730527438541,37.01053403,167.04,167.0,1.4984188]
[1730527438746,37.01053403,167.04,167.01,1.4984188]
[1730527438923,37.01053403,167.04,167.02,1.4984188]
[1730527439125,37.01053403,167.04,166.98,14.72983403]
[1730527439339,37.01053403,167.04,166.99,1.49843361]
[1730527439544,37.01053403,167.04,167.0,1.49843361]
[1730527439740,37.01053403,167.04,167.01,1.49843361]
[1730527439946,37.01053403,167.04,167.02,1.49843361]
[1730527440149,37.01053403,167.04,166.98,14.72983403]
[1730527440549,37.01053403,167.04,166.99,1.49843361]
[1730527440742,37.01053403,167.04,167.0,1.49843361]
[1730527441045,37.01053403,167.04,167.01,1.49843361]
[1730527441231,37.01053403,167.04,167.02,1.49843361]
[1730527441432,37.01053403,167.04,166.98,5.9886]
[1730527441646,14.72843403,167.03,166.99,1.49844768]
[1730527441851,14.72843403,167.03,167.0,1.49844768]
[1730527442031,14.72843403,167.03,167.01,1.49844768]
[1730527442232,14.72843403,167.03,167.02,1.49844768]
[1730527443055,14.72843403,167.03,167.02,1.49844536]
[1730527445251,14.85392403,167.03,166.95,5.9894]
[1730527445549,8.74123403,167.0,166.96,1.49863445]
[1730527445746,8.74123403,167.0,166.97,1.49863445]
[1730527445932,8.74123403,167.0,166.98,1.49863445]
[1730527446131,8.74123403,167.0,166.99,1.49863445]
[1730527446352,14.72923403,167.0,166.99,1.49863445]
[1730527449951,0.12549,167.03,166.96,8.74123403]
[1730527449952,8.74123403,167.01,166.96,8.74123403]
[1730527450167,8.74123403,167.01,166.97,1.49865839]
[1730527450330,8.74123403,167.01,166.98,1.49865839]
[1730527450531,8.74123403,167.01,166.99,1.49865839]
[1730527450734,8.74123403,167.01,166.96,8.74123403]
[1730527451045,8.74123403,167.01,166.97,1.49864408]
[1730527451244,5.988,167.0,166.98,1.49864408]
[1730527451446,5.988,167.0,166.96,8.74123403]
[1730527451647,5.988,167.0,166.97,1.49865864]
[1730527451951,5.988,167.0,166.96,8.74123403]
[1730527451952,5.988,167.0,166.98,1.49865864]
[1730527452139,5.988,167.0,166.96,8.74123403]
[1730527452333,5.988,167.0,166.97,1.49864433]
[1730527452534,5.988,167.0,166.98,1.49864433]
[1730527452734,5.988,167.0,166.96,8.74123403]
[1730527452936,5.988,167.0,166.97,1.49865915]
[1730527453151,5.988,167.0,166.98,1.49865915]
[1730527453357,5.988,167.0,166.96,8.74123403]
[1730527453650,5.988,167.0,166.97,1.49865915]
[1730527453953,5.988,167.0,166.98,1.49865905]
[1730527454157,5.988,167.0,166.96,8.74123403]
[1730527454346,5.988,167.0,166.97,1.49865777]
[1730527454536,5.988,167.0,166.98,1.49865777]
[1730527454736,5.988,167.0,166.96,8.74123403]
[1730527454937,5.988,167.0,166.97,1.4986588]
[1730527455137,5.988,167.0,166.98,1.4986588]
[1730527455338,5.988,167.0,166.95,8.74123403]
[1730527455553,5.988,167.0,166.96,1.49870012]
[1730527455737,5.988,167.0,166.97,1.49870012]
[1730527455938,5.988,167.0,166.98,1.49870012]
[1730527456241,5.988,167.0,166.96,8.74123403]
[1730527456447,5.988,167.0,166.97,1.49867129]
[1730527456648,5.988,167.0,166.98,1.49867129]
[1730527456851,5.988,167.0,166.96,8.74123403]
[1730527457058,5.988,167.0,166.97,1.49867335]
[1730527457234,5.988,167.0,166.98,1.4986731]
[1730527457434,5.988,167.0,166.96,8.74123403]
[1730527457636,5.988,167.0,166.97,1.49867179]
[1730527457931,5.988,167.0,166.98,1.49867179]
[1730527458247,5.988,167.0,166.96,8.74123403]
[1730527458453,5.988,167.0,166.97,1.49865697]
[1730527458777,5.988,167.0,166.98,1.49865697]
[1730527458967,5.988,167.0,166.96,8.74123403]
[1730527459263,5.988,167.0,166.97,1.49871277]
[1730527459440,5.988,167.0,166.96,8.74123403]
[1730527459643,5.988,167.0,166.97,1.49871972]
[1730527459945,5.988,167.0,166.96,8.74123403]
[1730527460146,14.72853403,167.02,166.97,1.49871779]
[1730527460334,14.72853403,167.02,166.96,8.74123403]
[1730527460636,14.72853403,167.02,166.97,1.49873211]
[1730527460857,14.72853403,167.02,166.96,8.74123403]
[1730527461247,14.72853403,167.02,166.97,1.49873341]
[1730527461456,14.72853403,167.02,166.96,8.74123403]
[1730527461651,14.72853403,167.02,166.97,1.49873366]
[1730527461851,14.72853403,167.02,166.96,8.74123403]
[1730527462049,14.72853403,167.02,166.97,1.49871703]
[1730527462252,14.72853403,167.02,166.96,8.74123403]
[1730527462465,14.72853403,167.02,166.97,1.49871728]
[1730527462667,14.72853403,167.02,166.96,8.74123403]
[1730527462835,14.72853403,167.02,166.97,1.49871728]
[1730527463039,14.72853403,167.02,166.96,8.74123403]
[1730527463466,14.72853403,167.02,166.97,1.49871884]
[1730527463761,14.72853403,167.02,166.96,8.74123403]
[1730527463962,14.72853403,167.02,166.97,1.49871703]
[1730527464161,14.72853403,167.02,166.96,8.74123403]
[1730527464479,14.72853403,167.02,166.97,1.4987321]
[1730527464659,14.72853403,167.02,166.96,8.74123403]
[1730527464978,14.72853403,167.02,166.97,10.23996613]
[1730527465268,5.9873,167.02,166.98,8.74123403]
[1730527470863,5.9873,167.02,166.97,8.74123403]
[1730527471064,14.72853403,167.02,166.98,1.49865674]
[1730527471272,14.72853403,167.02,166.97,8.74123403]
[1730527471766,14.72853403,167.02,166.98,1.49860076]
[1730527472068,14.72853403,167.02,166.97,8.74123403]
[1730527472268,14.72853403,167.02,166.98,1.49862176]
[1730527472442,14.72853403,167.02,166.97,8.74123403]
[1730527472647,14.72853403,167.02,166.98,1.49862176]
[1730527472848,14.72853403,167.02,166.97,8.74123403]
[1730527473065,14.72853403,167.02,166.98,1.4986514]
[1730527473266,14.72853403,167.02,166.97,8.74123403]
[1730527473564,14.72853403,167.02,166.98,1.4986514]
[1730527473764,14.72853403,167.02,166.97,8.74123403]
[1730527473962,14.72853403,167.02,166.98,1.49865114]
[1730527473963,0.12549,167.0,166.98,1.49865114]
[1730527474178,8.86672403,167.0,166.94,14.9926366]
[1730527474471,8.74123403,167.0,166.95,1.49877765]
[1730527474648,8.74123403,167.0,166.96,1.49877765]
[1730527474848,8.74123403,167.0,166.95,8.74123403]
[1730527475069,8.74123403,167.0,166.96,1.49877815]
[1730527475251,8.74123403,167.0,166.95,8.74123403]
[1730527475446,8.74123403,167.0,166.96,1.49877988]
[1730527475647,8.74123403,167.0,166.95,8.74123403]
[1730527475853,8.74123403,167.0,166.96,1.49877988]
[1730527476053,5.9883,166.99,166.95,8.74123403]
[1730527476253,5.9883,166.99,166.96,1.49878013]
[1730527476550,5.9883,166.99,166.95,8.74123403]
[1730527476760,5.9883,166.99,166.96,1.49878013]
[1730527476951,5.9883,166.99,166.95,8.74123403]
[1730527477161,5.9883,166.99,166.96,1.49877272]
[1730527477362,5.9883,166.99,166.95,8.74123403]
[1730527477546,5.9883,166.99,166.96,1.49877272]
[1730527477752,5.9883,166.99,166.95,8.74123403]
[1730527477966,5.9883,166.99,166.96,1.49877247]
[1730527478169,5.9883,166.99,166.95,8.74123403]
[1730527478351,5.9883,166.99,166.96,1.49877988]
[1730527478552,5.9883,166.99,166.95,8.74123403]
[1730527479053,5.9883,166.99,166.96,1.49878013]
[1730527479376,5.9883,166.99,166.95,8.74123403]
[1730527479572,5.9883,166.99,166.96,1.49877119]
[1730527479868,5.9883,166.99,166.95,8.74123403]
[1730527480063,5.9883,166.99,166.96,1.49877144]
[1730527480244,5.9883,166.99,166.95,8.74123403]
[1730527480448,5.9883,166.99,166.96,1.49877119]
[1730527480762,5.9883,166.99,166.95,8.74123403]
[1730527481058,5.9883,166.99,166.96,1.49877144]
[1730527481251,5.9883,166.99,166.97,1.49877144]
[1730527481452,5.9883,166.99,166.95,8.74123403]
[1730527481651,5.9883,166.99,166.96,1.49877093]
[1730527481869,5.9883,166.99,166.95,8.74123403]
[1730527482358,5.9883,166.99,166.96,1.49877751]
[1730527482679,5.9883,166.99,166.95,8.74123403]
[1730527482871,5.9883,166.99,166.96,1.49877726]
[1730527483059,5.9883,166.99,166.97,1.49877726]
[1730527483263,5.9883,166.99,166.95,8.74123403]
[1730527483451,5.9883,166.99,166.96,1.49877144]
[1730527483781,5.9883,166.99,166.97,1.49877144]
[1730527483954,5.9883,166.99,166.95,8.74123403]
[1730527484275,8.74123403,166.98,166.96,1.49877157]
[1730527484451,8.74123403,166.98,166.94,6.25140257]
[1730527484651,8.74123403,166.98,166.95,1.49881143]
[1730527484853,8.74123403,166.98,166.96,1.49881143]
[1730527485051,8.74123403,166.98,166.94,12.24150257]
[1730527485253,8.74123403,166.98,166.95,1.49881611]
[1730527485451,8.74123403,166.98,166.96,1.49881611]
[1730527485669,8.74123403,166.98,166.94,12.24150257]
[1730527485852,8.74123403,166.98,166.95,1.49881076]
[1730527486059,8.74123403,166.98,166.96,1.49881076]
[1730527486252,8.74123403,166.98,166.94,12.24150257]
[1730527486452,8.74123403,166.98,166.95,1.498816]
[1730527486680,14.73003403,166.98,166.96,1.498816]
[1730527486879,14.73003403,166.98,166.94,12.24150257]
[1730527487059,14.73003403,166.98,166.95,1.49882398]
[1730527487372,14.73003403,166.98,166.96,1.49882398]
[1730527487549,14.73003403,166.98,166.94,12.24150257]
[1730527487753,14.73003403,166.98,166.95,1.49882379]
[1730527487953,14.73003403,166.98,166.96,1.49882379]
[1730527488254,14.73003403,166.98,166.94,12.24150257]
[1730527488467,14.73003403,166.98,166.95,1.49882379]
[1730527488673,14.73003403,166.98,166.96,1.49882379]
[1730527488873,14.73003403,166.98,166.94,12.24150257]
[1730527489078,14.73003403,166.98,166.95,1.49881638]
[1730527489253,14.73003403,166.98,166.96,1.49881638]
[1730527489455,14.73003403,166.98,166.97,1.49881638]
[1730527489655,14.73003403,166.98,166.94,12.24150257]
[1730527489878,14.73003403,166.98,166.95,1.49879415]
[1730527490149,14.73003403,166.98,166.96,1.49879415]
[1730527490349,14.73003403,166.98,166.97,1.49881637]
[1730527491675,14.73003403,166.98,166.94,12.24150257]
[1730527491874,14.73003403,166.98,166.95,1.49882584]
[1730527492058,14.73003403,166.98,166.96,1.49882584]
[1730527492258,14.73003403,166.98,166.94,6.25140257]
[1730527492463,14.73003403,166.98,166.95,1.49882428]
[1730527492662,14.73003403,166.98,166.96,1.49882428]
[1730527492864,14.73003403,166.98,166.94,6.25140257]
[1730527493073,14.73003403,166.98,166.95,1.49881687]
[1730527493374,14.73003403,166.98,166.96,1.49881662]
[1730527493586,14.73003403,166.98,166.94,6.25140257]
[1730527493762,14.73003403,166.98,166.95,1.49881636]
[1730527493963,14.73003403,166.98,166.96,1.49881636]
[1730527494163,14.73003403,166.98,166.94,6.25140257]
[1730527494370,14.73003403,166.98,166.95,1.49895329]
[1730527494569,14.73003403,166.98,166.93,14.73163403]
[1730527494867,14.73003403,166.98,166.94,1.4989313]
[1730527495070,14.73003403,166.98,166.95,1.4989313]
[1730527495278,14.73003403,166.98,166.93,14.73163403]
[1730527495477,14.73003403,166.98,166.94,1.49894311]
[1730527495682,14.73003403,166.98,166.93,14.73163403]
[1730527495877,14.73003403,166.98,166.94,1.49894285]
[1730527496072,14.73003403,166.98,166.93,14.73163403]
[1730527496373,14.73003403,166.98,166.94,1.49894285]
[1730527496682,14.73003403,166.98,166.95,1.49894285]
[1730527496865,14.73003403,166.98,166.93,14.73163403]
[1730527497066,8.74123403,166.97,166.94,1.49892087]
[1730527497265,8.74123403,166.97,166.91,29.70953403]
[1730527497587,8.74123403,166.97,166.92,1.49907125]
[1730527497757,8.74123403,166.96,166.93,1.49907109]
[1730527497962,8.74123403,166.95,166.9,14.73273403]
[1730527498165,8.74123403,166.95,166.91,1.49914235]
[1730527498365,8.74123403,166.95,166.92,1.49914235]
[1730527498562,8.74123403,166.95,166.9,14.73273403]
[1730527498866,8.74123403,166.95,166.91,1.49915156]
[1730527499065,5.9898,166.95,166.92,1.49915156]
[1730527499266,5.9898,166.95,166.9,14.73273403]
[1730527499576,5.9898,166.95,166.91,1.4991797]
[1730527499777,5.9898,166.95,166.92,1.4991797]
[1730527500082,5.9898,166.95,166.9,14.73273403]
[1730527500298,5.9898,166.95,166.91,1.49913399]
[1730527500463,5.9898,166.95,166.92,1.49913399]
[1730527500665,5.9898,166.95,166.9,14.73273403]
[1730527500986,14.73103403,166.95,166.91,1.4991564]
[1730527501179,14.73103403,166.95,166.92,1.4991564]
[1730527501381,14.73103403,166.95,166.9,14.73273403]
[1730527501575,14.73103403,166.95,166.91,1.49913416]
[1730527501775,14.73103403,166.95,166.9,14.73273403]
[1730527501990,14.73103403,166.95,166.91,1.49915519]
[1730527502183,14.73103403,166.95,166.9,14.73273403]
[1730527502365,14.73103403,166.95,166.91,1.49915519]
[1730527502705,8.74123403,166.94,166.89,9.52510593]
[1730527502888,8.74123403,166.93,166.9,1.49915616]
[1730527503068,8.74123403,166.93,166.91,1.49914839]
[1730527503266,8.74123403,166.93,166.9,1.49923711]
[1730527503472,8.74123403,166.91,166.89,0.7838719]
[1730527503777,15.7698,166.94,166.89,0.7838719]
[1730527503778,8.74123403,166.9,166.89,0.7838719]
[1730527504496,14.73283403,166.9,166.89,0.7838719]
[1730527504977,5.9916,166.9,166.89,0.7838719]
[1730527505487,24.51103403,166.94,166.89,15.51700593]
[1730527505986,30.50133403,166.94,166.89,15.51700593]
[1730527506173,30.50133403,166.94,166.89,6.7757719]
[1730527508969,30.50133403,166.94,166.89,15.51700593]
[1730527513294,30.50133403,166.94,166.89,14.73313403]
[1730527515387,30.50133403,166.94,166.89,5.9919]
[1730527528891,8.74123403,166.93,166.88,1.49928463]
[1730527529093,14.73183403,166.93,166.88,7.49148463]
[1730527530193,14.73183403,166.93,166.88,16.23271866]
[1730527530412,14.73183403,166.93,166.88,14.73343403]
[1730527530625,5.9906,166.93,166.88,16.23274882]
[1730527530916,5.9906,166.93,166.88,14.73343403]
[1730527531295,14.73183403,166.93,166.88,14.73343403]
[1730527532596,14.73183403,166.93,166.89,1.4992703]
[1730527534018,14.73183403,166.93,166.88,14.73343403]
[1730527534419,14.73183403,166.93,166.89,1.49928513]
[1730527534612,14.73183403,166.93,166.88,14.73343403]
[1730527534816,14.73183403,166.93,166.89,1.49928513]
[1730527535003,14.73183403,166.93,166.88,14.73343403]
[1730527535202,14.73183403,166.93,166.89,1.49928513]
[1730527535401,14.73183403,166.93,166.88,14.73343403]
[1730527535620,14.73183403,166.93,166.89,1.49928513]
[1730527535816,14.73183403,166.93,166.88,14.73343403]
[1730527535994,14.73183403,166.93,166.89,1.49928513]
[1730527536198,14.73183403,166.93,166.88,14.73343403]
[1730527536512,14.73183403,166.93,166.89,1.49928513]
[1730527536720,14.73183403,166.93,166.88,14.73343403]
[1730527536921,14.73183403,166.93,166.89,1.4992703]
[1730527537098,14.73183403,166.93,166.87,23.72283403]
[1730527537298,14.73183403,166.93,166.88,1.49927055]
[1730527537517,14.73183403,166.93,166.89,1.49927055]
[1730527537731,14.73183403,166.93,166.9,1.49927055]
[1730527538022,14.73183403,166.93,166.88,14.73343403]
[1730527538229,14.73183403,166.93,166.89,1.49931323]
[1730527538518,14.73183403,166.93,166.88,5.9922]
[1730527538720,14.73183403,166.93,166.89,1.49931635]
[1730527539017,8.74123403,166.9,166.85,5.9934]
[1730527539220,8.74123403,166.89,166.86,1.49946146]
[1730527539519,8.74123403,166.89,166.87,1.49946146]
[1730527539718,8.74123403,166.89,166.88,1.49946146]
[1730527539896,8.74123403,166.9,166.88,1.49946146]
[1730527540100,14.73283403,166.9,166.85,14.73463403]
[1730527540305,14.73283403,166.9,166.86,1.49946006]
[1730527540601,14.73283403,166.9,166.87,1.49946006]
[1730527540819,14.73283403,166.9,166.88,1.49946006]
[1730527541005,14.73283403,166.9,166.85,14.73463403]
[1730527541209,14.73283403,166.9,166.86,1.4994593]
[1730527541407,14.73283403,166.9,166.87,1.49945981]
[1730527541609,14.73283403,166.9,166.88,1.49945981]
[1730527541808,14.73283403,166.9,166.85,14.73463403]
[1730527542010,14.73283403,166.9,166.86,1.49946006]
[1730527542210,14.73283403,166.9,166.87,1.49946006]
[1730527542402,14.73283403,166.9,166.88,1.49946006]
[1730527542604,14.73283403,166.9,166.85,14.73463403]
[1730527542904,14.73283403,166.9,166.86,1.49948075]
[1730527543103,14.73283403,166.9,166.87,1.49948075]
[1730527543299,14.73283403,166.9,166.85,5.9934]
[1730527543505,8.74123403,166.87,166.86,1.49945956]
[1730527545117,14.73383403,166.87,166.86,1.49945956]
[1730527545633,14.73383403,166.87,166.81,14.9868]
[1730527545926,8.74123403,166.85,166.82,1.49968114]
[1730527546100,8.74123403,166.85,166.83,1.49968114]
[1730527546305,30.62993403,166.84,166.8,5.995]
[1730527546507,8.74123403,166.83,166.81,1.49971181]
[1730527546722,8.74123403,166.83,166.82,1.49971181]
[1730527547126,8.74123403,166.83,166.8,5.995]
[1730527547308,8.74123403,166.83,166.81,1.49971927]